bitfinex-derivatives/quotes_ETHF0:USTF0_20250817
["timestamp","ask_amount","ask_price","bid_price","bid_amount"]
[1755449484153,1.4557,4526.2,4526.1,20.327]
[1755449484355,1.4557,4526.2,4526.1,21.5175]
[1755449484745,1.4557,4526.2,4526.1,21.7627]
[1755449485756,0.69252,4526.3,4526.1,20.8852]
[1755449485954,0.85272,4526.3,4526.2,1.4357]
[1755449486155,1.02172,4526.3,4526.2,1.4357]
[1755449486355,1.89732,4526.3,4526.2,1.4357]
[1755449486857,1.89732,4526.3,4526.2,1.1905]
[1755449487254,0.44162,4526.3,4526.2,0.5582]
[1755449487558,0.44162,4526.3,4526.2,1.4357]
[1755449487860,0.44169,4525.7,4525.6,1.4357]
[1755449488062,0.44169,4525.7,4525.6,21.7637]
[1755449489054,0.69259,4525.7,4525.6,21.7637]
[1755449489859,1.01973,4525.2,4525.1,0.9428]
[1755449490152,0.7925,4525.2,4524.7,3.453]
[1755449490360,0.8289,4524.8,4524.7,4.20778]
[1755449490555,0.5801,4524.8,4524.7,4.20778]
[1755449490856,1.89739,4525.6,4525.5,0.6484]
[1755449491061,1.01975,4525.1,4525.0,0.8034]
[1755449491359,0.5801,4525.1,4525.0,21.1304]
[1755449491563,0.5801,4525.1,4525.0,21.7627]
[1755449491754,0.8343,4525.1,4525.0,21.7627]
[1755449492060,1.4557,4525.1,4525.0,21.7627]
[1755449492558,0.5801,4525.6,4525.5,1.4357]
[1755449492759,1.4557,4525.6,4525.5,21.5175]
[1755449492966,0.578,4525.2,4525.1,1.1905]
[1755449493158,1.4557,4525.2,4525.1,1.1905]
[1755449493462,1.4557,4525.2,4525.1,21.5175]
[1755449493859,0.2488,4525.2,4525.1,21.7627]
[1755449494056,1.02179,4525.6,4525.5,1.4357]
[1755449494259,1.64859,4525.6,4525.5,21.7637]
[1755449494457,1.89739,4525.6,4525.5,21.7637]
[1755449494854,1.89739,4525.6,4525.5,1.1905]
[1755449495059,1.89739,4525.6,4525.5,20.328]
[1755449495259,1.89739,4525.6,4525.5,21.5185]
[1755449495766,1.89742,4525.3,4525.2,1.63222]
[1755449495963,1.4557,4525.3,4525.2,22.20442]
[1755449496955,1.4557,4525.1,4525.0,0.99994]
[1755449497156,1.4557,4525.1,4525.0,21.5185]
[1755449497464,0.8343,4524.8,4524.7,0.5691]
[1755449497763,1.4557,4524.8,4524.7,1.1905]
[1755449498067,1.89747,4524.8,4524.7,1.1905]
[1755449498364,1.4557,4524.3,4524.2,4.6435]
[1755449498668,1.4557,4524.3,4524.2,24.9705]
[1755449498669,0.2509,4524.3,4524.2,24.9705]
[1755449498865,0.4418,4524.5,4524.4,1.4357]
[1755449499061,1.2707,4524.5,4524.4,21.7627]
[1755449499266,1.4557,4524.5,4524.4,21.7627]
[1755449499562,1.0831,4524.5,4524.4,21.7627]
[1755449499867,1.01977,4524.8,4524.7,0.5582]
[1755449500064,1.89747,4524.8,4524.7,1.4357]
[1755449500568,3.2078,4525.3,4525.0,0.44174]
[1755449500774,3.537,4525.3,4525.2,0.5582]
[1755449500960,4.85432,4525.3,4525.2,1.4357]
[1755449501161,4.85432,4525.3,4525.2,0.9428]
[1755449501467,5.10522,4525.3,4525.2,1.1905]
[1755449502370,5.10522,4525.3,4525.2,0.2368]
[1755449502568,5.10522,4525.3,4525.2,1.1905]
[1755449503166,4.0855,4525.3,4524.9,0.44175]
[1755449503362,1.89746,4525.0,4524.9,0.6214]
[1755449503563,0.578,4524.8,4524.6,0.44178]
[1755449503766,1.4557,4524.8,4524.7,21.2708]
[1755449503962,0.5051,4524.7,4524.6,0.2368]
[1755449504168,1.89748,4524.7,4524.6,20.328]
[1755449504364,1.10442,4524.9,4524.2,4.3983]
[1755449504365,1.27072,4524.3,4524.2,4.3983]
[1755449504565,1.89752,4524.3,4524.2,1.1905]
[1755449504766,1.89752,4524.3,4524.2,21.5185]
[1755449505065,1.89752,4524.3,4524.2,20.7287]
[1755449505366,1.89752,4524.3,4524.2,21.5185]
[1755449505873,1.89752,4524.3,4524.2,20.8862]
[1755449506066,1.89752,4524.3,4524.2,21.5185]
[1755449506266,1.89752,4524.3,4524.2,21.7637]
[1755449506468,1.89752,4524.3,4524.2,20.8862]
[1755449506766,1.89752,4524.3,4524.2,21.7637]
[1755449507162,1.89752,4524.3,4524.2,0.4027]
[1755449507368,1.89752,4524.3,4523.8,0.44186]
[1755449507369,1.4557,4524.0,4523.9,1.4357]
[1755449507570,1.4557,4524.0,4523.9,21.7637]
[1755449507774,1.4557,4524.0,4523.9,1.4357]
[1755449507971,1.4557,4524.0,4523.9,21.7637]
[1755449508279,0.44191,4523.3,4523.2,3.2078]
[1755449508469,1.90271,4523.3,4523.2,4.3997]
[1755449508670,0.2397,4523.9,4523.2,3.7922]
[1755449508970,1.1045,4524.5,4522.3,1.28370736]
[1755449508971,0.44195,4522.9,4522.7,20.329]
[1755449509166,0.5845,4522.8,4522.7,20.7462]
[1755449509368,0.5845,4522.8,4522.7,1.0247]
[1755449509369,1.4608,4522.8,4522.7,1.0247]
[1755449509666,1.4608,4522.8,4522.7,1.1919]
[1755449510274,1.4608,4522.7,4522.6,1.0247]
[1755449510474,1.4608,4522.7,4522.6,1.1919]
[1755449511674,0.44198,4522.6,4522.3,0.44201]
[1755449511972,1.90278,4522.6,4522.5,1.1919]
[1755449512269,1.90281,4522.3,4522.2,3.8652]
[1755449512468,1.90281,4522.3,4521.6,0.2102]
[1755449512469,0.84371,4522.3,4521.6,3.2078]
[1755449512782,0.2397,4522.2,4521.9,0.5844]
[1755449513070,0.8242,4522.2,4522.1,1.02470019]
[1755449513373,1.4608,4522.2,4522.1,1.02470019]
[1755449513675,0.5845,4522.2,4522.1,1.9e-07]
[1755449514067,0.5845,4522.2,4522.1,0.41720019]
[1755449514573,0.44201,4522.3,4522.1,1.19190019]
[1755449514874,0.60401,4522.3,4522.2,1.1919]
[1755449515069,0.44201,4522.3,4522.2,1.1919]
[1755449515271,0.44201,4522.3,4522.2,21.7472]
[1755449515570,1.90281,4522.3,4522.2,21.5439]
[1755449515764,1.90281,4522.3,4522.2,1.1919]
[1755449516167,1.90281,4522.3,4522.2,0.7845]
[1755449516569,1.90281,4522.3,4522.2,1.1919]
[1755449516768,1.90281,4522.3,4522.1,1.9e-07]
[1755449516976,0.3883,4522.2,4522.1,1.9e-07]
[1755449517474,0.9728,4522.2,4522.1,0.41720019]
[1755449517668,0.9728,4522.2,4522.1,1.19190019]
[1755449518171,1.4608,4522.2,4522.1,0.41720019]
[1755449518365,0.5845,4522.2,4522.1,1.19190019]
[1755449518970,0.3883,4522.2,4522.1,1.9e-07]
[1755449519370,0.44201,4522.3,4522.1,1.9e-07]
[1755449519572,0.8763,4522.2,4522.1,1.9e-07]
[1755449519771,0.5503,4522.2,4522.1,1.19190019]
[1755449520273,0.44201,4522.3,4522.2,0.2173]
[1755449520477,0.44201,4522.3,4522.2,1.4092]
[1755449521075,0.84371,4522.3,4522.2,1.4092]
[1755449521475,0.68171,4522.3,4522.2,1.4092]
[1755449521777,0.44201,4522.3,4522.2,1.4092]
[1755449521974,1.34465,4522.7,4522.6,0.5844]
[1755449521975,0.44197,4522.7,4522.6,0.5844]
[1755449522172,1.90277,4522.7,4522.6,1.1919]
[1755449522372,0.3883,4522.2,4521.5,3.7922]
[1755449522577,0.44202,4522.3,4521.6,0.4031]
[1755449522883,0.44202,4522.3,4520.4,0.0221]
[1755449522884,6.2299,4522.2,4521.0,0.4172]
[1755449523182,6.2299,4522.2,4521.0,0.5844]
[1755449523675,3.2078,4522.2,4521.1,0.3673]
[1755449523871,3.2078,4522.2,4521.2,0.9376]
[1755449524077,3.2078,4522.2,4521.0,0.7845]
[1755449524278,3.2078,4522.2,4521.0,0.9517]
[1755449524480,3.2078,4522.2,4521.0,1.02653]
[1755449524678,3.2078,4522.2,4521.4,0.4421]
[1755449524982,4.4289,4522.2,4522.1,1.19190019]
[1755449525171,0.4421,4521.4,4521.2,3.2078]
[1755449525476,0.2397,4521.2,4520.8,0.2402]
[1755449525675,1.4608,4520.9,4520.8,0.4172]
[1755449526072,1.4608,4520.9,4520.8,1.1919]
[1755449526480,1.4608,4520.9,4520.8,1.0247]
[1755449526882,1.4608,4520.9,4520.8,1.1919]
[1755449527276,0.44216,4520.8,4520.5,0.2402]
[1755449527478,1.4608,4520.6,4520.5,0.9517]
[1755449527979,1.4608,4520.6,4520.5,1.1919]
[1755449528277,3.2078,4521.1,4520.1,3.2078]
[1755449528278,0.44215,4520.9,4520.7,0.1672]
[1755449528582,1.01245,4520.9,4520.8,1.1919]
[1755449528782,1.26075,4520.9,4520.8,1.1919]
[1755449528983,1.51465,4520.9,4520.8,0.4172]
[1755449529182,1.90295,4520.9,4520.8,0.8246]
[1755449529385,1.90295,4520.9,4520.8,1.1919]
[1755449530380,1.90295,4520.9,4520.8,0.7845]
[1755449530680,3.2078,4521.1,4521.0,0.5844]
[1755449530879,3.88963,4521.1,4521.0,1.1919]
[1755449531079,5.11073,4521.1,4521.0,1.1919]
[1755449531384,5.11073,4521.1,4521.0,0.2543]
[1755449531983,3.88963,4521.1,4521.0,1.4092]
[1755449532486,5.11073,4521.1,4521.0,1.1919]
[1755449532883,4.05163,4521.1,4521.0,1.4092]
[1755449533080,3.64993,4521.1,4521.0,1.4092]
[1755449533282,0.2397,4521.4,4521.0,1.4092]
[1755449533484,0.44211,4521.3,4521.2,0.6204]
[1755449533686,1.01241,4521.3,4521.2,1.1919]
[1755449533987,1.01241,4521.3,4521.2,1.4092]
[1755449534188,1.51461,4521.3,4521.2,1.1919]
[1755449534383,0.44211,4521.3,4521.2,1.4092]
[1755449534588,0.44208,4521.6,4521.5,1.0419]
[1755449534888,0.44208,4521.6,4521.5,1.4092]
[1755449535284,3.2078,4521.8,4520.8,3.2078]
[1755449535285,0.162,4521.3,4520.8,3.2078]
[1755449535589,3.2078,4523.1,4522.4,1.0419]
[1755449535788,0.44193,4523.1,4522.9,1.4313]
[1755449535981,0.44191,4523.4,4523.1,1.4092]
[1755449536284,0.3397,4523.2,4523.1,4.1595]
[1755449536488,1.5608,4523.2,4523.1,0.2543]
[1755449536688,0.8186,4522.8,4522.7,0.9517]
[1755449536892,0.2397,4522.8,4522.7,1.4092]
[1755449537086,0.1,4523.2,4523.1,0.6075]
[1755449537384,0.2397,4523.9,4523.1,0.8469]
[1755449537581,3.2078,4524.5,4523.8,0.2512]
[1755449537781,0.44191,4523.4,4523.2,0.3638]
[1755449537987,0.4743,4523.1,4522.5,3.5716]
[1755449538186,0.44195,4522.9,4522.5,3.5716]
[1755449538384,0.44199,4522.5,4522.2,0.2512]
[1755449538688,0.8351,4521.8,4521.7,0.615]
[1755449538878,0.44206,4521.9,4521.1,0.2512]
[1755449538879,0.598,4521.3,4521.1,0.2512]
[1755449539085,0.44215,4520.9,4520.8,31.843]
[1755449539291,0.0221,4520.5,4519.7,2.858]
[1755449539484,0.0221,4520.5,4517.0,3.88829993]
[1755449539485,3.2078,4519.8,4517.0,6.65498084]
[1755449539691,3.2078,4518.0,4517.2,0.2512]
[1755449539986,3.2078,4517.3,4516.7,0.2462]
[1755449540183,3.2078,4517.9,4516.9,0.44254]
[1755449540385,3.2078,4517.9,4517.3,0.3859]
[1755449540589,0.44244,4517.9,4517.6,0.4974]
[1755449540892,3.65021,4518.3,4517.0,0.44253]
[1755449541191,3.2078,4517.8,4517.2,0.615]
[1755449541389,3.2078,4518.4,4517.3,0.0221]
[1755449541581,3.2078,4519.1,4518.0,0.8612]
[1755449541787,3.2078,4519.9,4518.7,0.8612]
[1755449541984,3.2078,4519.9,4519.1,0.80612]
[1755449542195,3.2078,4520.7,4519.9,0.4974]
[1755449542493,3.2078,4520.7,4518.1,23.92372836]
[1755449542494,0.0221,4520.1,4518.8,2.83027754]
[1755449542794,0.44238,4518.6,4518.1,0.2512]
[1755449543087,3.2078,4518.2,4517.8,0.3638]
[1755449543293,0.59476851,4518.1,4516.4,0.2512]
[1755449543482,3.2078,4517.5,4517.0,0.3638]
[1755449543683,3.2078,4518.1,4517.5,0.44248]
[1755449543882,3.2078,4518.1,4518.0,1.30363]
[1755449544087,0.0221,4520.2,4518.0,1.30363]
[1755449544088,3.2078,4518.8,4518.1,0.4974]
[1755449544393,0.4648,4515.3,4515.0,3.2078]
[1755449544686,0.4648,4515.3,4510.5,3.88829993]
[1755449544687,0.44296,4512.7,4509.9,3.2078]
[1755449544888,3.2078,4512.8,4512.2,0.47834674]
[1755449545090,3.2078,4513.6,4512.7,0.44295]
[1755449545285,3.2078,4514.8,4513.4,0.2512]
[1755449545486,0.0221,4514.5,4513.1,3.459]
[1755449545691,3.2078,4513.7,4512.6,0.2512]
[1755449545984,0.3608,4514.3,4513.5,0.2512]
[1755449546186,3.2078,4514.9,4514.1,0.8612]
[1755449546384,3.2078,4514.9,4514.3,0.2462]
[1755449546588,3.2078,4514.9,4513.3,31.858]
[1755449546589,3.2078,4515.5,4514.5,4.069]
[1755449546784,3.2078,4514.9,4514.0,0.615]
[1755449546989,3.2078,4514.3,4514.2,0.4974]
[1755449547187,0.1,4516.2,4513.3,32.30088]
[1755449547188,3.5686,4514.9,4513.9,3.2078]
[1755449547390,0.0221,4514.2,4513.3,31.858]
[1755449547588,0.3608,4513.5,4513.3,31.858]
[1755449547784,3.2078,4514.3,4513.4,0.4974]
[1755449547985,7.8566675,4523.6,4514.2,3.8968]
[1755449547986,3.2078,4515.2,4514.2,3.8968]
[1755449548182,3.2078,4515.2,4512.5,1.10743]
[1755449548183,0.0221,4514.6,4513.2,3.2078]
[1755449548387,3.2078,4513.4,4510.5,3.2078]
[1755449548586,3.2078,4510.7,4509.8,0.2512]
[1755449548890,0.0221,4510.5,4509.7,0.4974]
[1755449549092,3.2078,4510.1,4509.4,0.2462]
[1755449549297,3.2078,4509.5,4508.8,3.454]
[1755449549494,3.2078,4509.5,4508.4,0.2462]
[1755449549689,3.2078,4509.5,4509.2,0.2462]
[1755449549890,3.2078,4509.8,4509.2,0.2462]
[1755449550192,3.2078,4509.8,4509.2,0.8612]
[1755449550491,3.2078,4510.7,4509.8,0.4974]
[1755449550690,3.2078,4511.6,4510.0,0.4974]
[1755449550991,25.099,4514.6,4510.0,0.4974]
[1755449550992,3.2078,4512.2,4512.1,0.44301]
[1755449551193,3.44893643,4512.2,4512.0,1.30422]
[1755449551399,3.2078,4513.0,4512.8,0.3638]
[1755449551593,3.2078,4513.5,4513.2,0.4429]
[1755449551790,3.2078,4513.5,4513.4,0.4974]
[1755449551990,3.2078,4513.5,4513.4,0.8612]
[1755449552186,3.2299,4513.5,4513.4,0.2462]
[1755449552491,3.2299,4513.5,4511.0,57.008]
[1755449552492,6.83557543,4513.5,4511.0,0.4974]
[1755449552691,6.83557543,4513.5,4510.4,3.2078]
[1755449552692,3.2078,4511.5,4510.6,0.2462]
[1755449552889,3.2299,4511.0,4510.2,3.2078]
[1755449553093,3.2078,4510.5,4509.5,0.2462]
[1755449553283,3.2078,4510.0,4509.1,0.2462]
[1755449553489,3.2299,4510.0,4508.4,3.2078]
[1755449553689,0.0221,4509.3,4507.9,3.2078]
[1755449553904,0.0221,4508.4,4507.3,0.2462]
[1755449554204,0.0221,4508.4,4506.6,0.3638]
[1755449554205,0.0221,4508.4,4506.6,3.65134]
[1755449554491,3.2078,4508.5,4507.2,0.44348]
[1755449554698,3.2078,4508.5,4507.3,0.4974]
[1755449555191,0.0221,4508.4,4506.8,0.2462]
[1755449555390,3.2078,4508.5,4506.8,0.2462]
[1755449555586,0.0221,4508.4,4506.8,0.2462]
[1755449555791,3.0221,4508.4,4506.8,0.2462]
[1755449555991,0.0221,4508.4,4506.3,0.2462]
[1755449556298,0.0221,4507.9,4505.7,0.2462]
[1755449556592,3.2078,4506.8,4505.9,0.8612]
[1755449556796,3.2078,4506.8,4506.2,0.94099]
[1755449556990,3.2078,4506.8,4505.4,0.0221]
[1755449556991,3.2078,4506.8,4506.4,0.8612]
[1755449557200,3.2078,4506.8,4505.6,0.2462]
[1755449557392,3.2078,4506.2,4505.9,0.4974]
[1755449557589,3.2078,4506.7,4506.1,0.2512]
[1755449557789,3.2078,4506.7,4505.0,35.1048]
[1755449557995,3.2078,4506.2,4505.0,35.1048]
[1755449558190,0.2371,4508.2,4506.1,0.615]
[1755449558391,0.2371,4508.2,4505.5,0.0221]
[1755449558392,0.2371,4508.2,4507.3,0.44347]
[1755449558591,3.2078,4508.6,4507.9,0.2462]
[1755449558796,3.2078,4508.6,4508.5,0.8612]
[1755449558999,0.1,4509.2,4508.5,0.8612]
[1755449559195,0.1,4509.2,4508.8,0.2462]
[1755449559498,3.2078,4510.0,4509.0,0.2462]
[1755449559695,3.2078,4510.1,4509.5,0.44326]
[1755449559891,3.2078,4510.1,4510.0,0.8612]
[1755449560293,3.2078,4510.6,4510.0,3.8612]
[1755449560599,3.2078,4510.6,4510.5,0.8612]
[1755449561007,3.2078,4510.6,4510.5,3.8612]
[1755449561203,3.2078,4511.3,4510.6,0.2462]
[1755449561498,2.5558,4511.3,4511.2,0.8612]
[1755449561707,3.2078,4512.4,4511.3,0.2512]
[1755449561898,3.2078,4511.9,4511.3,0.69428]
[1755449562098,3.2078,4512.4,4511.7,0.44304]
[1755449562298,3.2078,4512.9,4512.0,0.11036531]
[1755449562502,0.8351,4512.2,4512.0,0.11036531]
[1755449562701,0.8351,4512.1,4512.0,0.11036531]
[1755449563303,4.0429,4512.3,4512.0,0.11036531]
[1755449563703,0.8351,4512.1,4512.0,0.11036531]
[1755449564601,3.2078,4512.3,4512.0,0.11036531]
[1755449564808,3.2078,4512.3,4512.2,0.8612]
[1755449565010,3.2078,4513.1,4512.2,0.8612]
[1755449565206,3.2078,4512.5,4512.1,0.44301]
[1755449565502,3.2078,4512.5,4512.0,0.11036531]
[1755449565503,3.2078,4513.1,4512.4,0.8612]
[1755449565704,3.2078,4513.6,4512.8,3.2078]
[1755449565896,3.2078,4513.6,4512.9,0.8612]
[1755449566603,3.2078,4513.6,4512.7,0.44295]
[1755449566604,3.2078,4513.6,4513.3,0.8612]
[1755449566797,3.2078,4513.6,4513.2,0.11036531]
[1755449567003,3.2078,4513.6,4513.4,0.8612]
[1755449567203,3.2078,4513.6,4513.5,0.8612]
[1755449567503,3.8346,4513.6,4513.5,0.11036531]
[1755449567698,4.1009,4513.6,4513.5,0.11036531]
[1755449568403,3.2299,4513.6,4512.0,0.3704]
[1755449568605,3.2078,4512.6,4512.0,0.3704]
[1755449568805,3.2078,4512.6,4512.0,0.81341]
[1755449569100,3.2078,4512.6,4512.2,0.443]
[1755449569302,3.2078,4513.1,4512.6,0.2419]
[1755449569508,3.2078,4513.1,4512.4,0.8693]
[1755449569904,3.2078,4513.6,4513.3,0.8693]
[1755449570111,3.2078,4513.6,4513.5,0.8693]
[1755449570306,3.2078,4514.4,4513.5,0.8693]
[1755449570506,3.2078,4514.4,4514.0,0.8693]
[1755449570712,3.2078,4514.4,4513.3,0.68479]
[1755449570911,3.2078,4514.4,4513.8,0.44284]
[1755449571109,3.2078,4514.4,4513.0,0.8693]
[1755449571311,0.23285864,4514.3,4513.6,0.44286]
[1755449571509,3.2078,4514.4,4512.9,3.2078]
[1755449571510,0.23285864,4514.2,4513.5,0.44287]
[1755449571719,3.2078,4514.4,4513.8,0.44284]
[1755449572005,0.23316789,4514.3,4514.2,0.8693]
[1755449572212,3.2078,4515.0,4514.3,0.44279]
[1755449572407,0.84284714,4514.9,4514.5,0.44277]
[1755449572607,0.23319514,4514.8,4514.5,0.44278]
[1755449572812,0.23319514,4514.7,4514.3,0.8693]
[1755449573114,3.2078,4515.0,4514.9,0.8693]
[1755449573314,3.44169509,4515.0,4514.9,0.8693]
[1755449573909,3.44169509,4515.0,4514.3,0.44279]
[1755449574214,3.2078,4514.4,4513.4,0.8693]
[1755449574414,0.23389509,4514.3,4513.4,0.8693]
[1755449574617,3.2078,4513.9,4513.2,0.257]
[1755449574916,0.23389509,4513.8,4513.2,0.257]
[1755449575511,3.2078,4513.4,4513.2,0.257]
[1755449575708,0.23389509,4513.3,4512.7,0.257]
[1755449575920,0.3749,4514.4,4512.7,0.8693]
[1755449576216,3.2078,4514.1,4513.1,0.257]
[1755449576417,3.2078,4514.1,4512.6,56.797]
[1755449576418,3.2078,4514.1,4513.3,0.257]
[1755449576617,3.2078,4513.4,4513.3,0.4989]
[1755449576812,3.2078,4513.4,4513.3,0.8693]
[1755449578014,3.2078,4513.4,4513.3,0.4989]
[1755449578710,3.2078,4513.4,4513.3,0.8693]
[1755449579312,3.2078,4513.4,4512.7,25.6853]
[1755449579523,3.2078,4513.4,4512.7,25.6213]
[1755449579715,3.2078,4513.4,4512.7,25.6203]
[1755449579918,3.2078,4513.4,4512.7,0.8693]
[1755449580113,3.2078,4513.4,4512.7,25.6093]
[1755449580318,3.2078,4514.4,4513.4,1.1072]
[1755449580516,3.2078,4514.9,4514.3,0.8693]
[1755449580715,3.2078,4514.4,4513.7,0.8693]
[1755449580920,3.2078,4514.4,4513.7,1.31216]
[1755449581118,3.2078,4513.9,4513.2,3.2078]
[1755449581420,3.2078,4513.3,4513.1,0.3704]
[1755449581625,3.2078,4513.3,4513.2,0.8693]
[1755449581921,3.2078,4513.8,4513.7,1.31216]
[1755449582317,3.2078,4514.3,4513.5,0.257]
[1755449582525,3.2078,4514.3,4513.6,25.11986]
[1755449582718,3.2078,4514.3,4513.8,0.44285]
[1755449583021,3.2078,4514.3,4513.7,0.8693]
[1755449583225,3.2078,4514.3,4514.0,0.44283]
[1755449583434,3.2078,4514.3,4514.0,0.8693]
[1755449583626,3.2078,4514.3,4512.6,31.9381]
[1755449583627,3.2078,4514.3,4513.7,24.661]
[1755449583830,3.2078,4513.8,4513.6,24.661]
[1755449584240,0.871,4513.7,4513.4,0.44288]
[1755449584541,3.2078,4513.8,4513.7,0.44286]
[1755449584830,0.0221,4514.5,4514.2,0.6847]
[1755449584831,3.2078,4514.5,4514.2,0.6847]
[1755449585131,3.5827,4514.5,4514.2,0.94171]
[1755449585438,3.2078,4514.5,4514.3,0.8693]
[1755449585732,4.0788,4514.5,4514.1,0.3704]
[1755449585939,3.2078,4514.5,4514.2,0.44281]
[1755449586138,3.2078,4514.5,4514.2,1.31211]
[1755449586335,0.59707117,4514.4,4514.2,1.31211]
[1755449586531,0.59707117,4514.3,4514.2,25.86411]
[1755449586733,3.2078,4514.5,4514.4,0.44279]
[1755449587037,3.2078,4514.5,4514.4,1.31209]
[1755449587534,0.6268,4514.3,4512.5,0.2419]
[1755449587727,3.2078,4512.8,4512.6,0.44297]
[1755449587932,3.2078,4512.8,4512.7,0.8693]
[1755449588131,3.80513143,4512.8,4512.7,0.8693]
[1755449588331,0.59733143,4512.8,4512.7,0.8693]
[1755449588939,3.2078,4513.7,4513.6,0.44287]
[1755449589139,0.871,4513.6,4513.0,0.8693]
[1755449589335,0.2442,4513.0,4512.3,0.69999]
[1755449589640,3.2078,4512.6,4512.4,0.44298]
[1755449589828,0.58855153,4512.5,4512.4,0.44298]
[1755449590434,0.58855153,4512.5,4512.4,1.31228]
[1755449591137,0.58435906,4512.5,4512.4,1.31229]
[1755449591341,1.20345906,4512.5,4512.4,24.88299]
[1755449591638,0.0221,4512.3,4511.0,0.44312]
[1755449591938,0.871,4511.3,4511.2,0.4431]
[1755449592145,0.79268156,4511.3,4511.2,1.3124]
[1755449592339,0.7926075,4511.3,4511.2,1.3124]
[1755449592544,0.58435906,4511.3,4511.2,1.3124]
[1755449592741,0.58435906,4511.3,4511.2,25.7864]
[1755449592942,0.58435906,4511.3,4511.2,1.3124]
[1755449593140,0.58435906,4511.3,4511.2,25.7814]
[1755449594340,0.57575038,4511.3,4511.2,25.7814]
[1755449594844,0.57575038,4511.3,4511.2,24.9121]
[1755449595041,0.7840236,4511.3,4511.0,0.44312]
[1755449595341,0.20827322,4511.2,4511.0,0.44312]
[1755449596036,0.871,4511.1,4511.0,0.44312]
[1755449596237,0.0221,4510.8,4510.2,0.178]
[1755449596542,0.8931,4510.5,4510.2,0.178]
[1755449596842,3.2078,4510.6,4510.2,0.178]
[1755449596843,0.871,4510.3,4510.2,0.178]
[1755449597039,0.2519,4510.7,4510.3,0.3704]
[1755449597243,0.4961,4510.8,4510.2,0.178]
[1755449597435,0.871,4510.8,4510.5,0.44317]
[1755449598041,3.2078,4511.0,4510.4,24.361]
[1755449598240,3.2078,4511.0,4510.2,24.539]
[1755449598441,3.2078,4511.0,4510.7,0.44315]
[1755449598946,0.8683,4510.8,4510.7,0.44315]
[1755449599144,0.8683,4510.7,4510.6,0.44316]
[1755449599545,3.2078,4511.0,4510.2,0.6212]
[1755449599546,0.8683,4510.9,4510.2,0.6212]
[1755449599749,0.8683,4510.4,4510.2,0.6212]
[1755449600143,0.8683,4510.3,4510.2,0.178]
[1755449602743,0.8683,4510.4,4510.2,0.178]
[1755449602944,0.8683,4510.3,4510.2,0.178]
[1755449603847,3.8683,4510.3,4509.2,56.117]
[1755449604053,3.2078,4509.7,4509.3,0.8557]
[1755449604345,3.2078,4509.7,4509.6,0.8557]
[1755449605346,3.2078,4509.7,4509.6,25.0217]
[1755449605546,3.4641,4509.7,4509.6,24.166]
[1755449605749,3.2078,4509.7,4509.6,25.0217]
[1755449606050,3.2078,4510.4,4509.9,1.10809]
[1755449606248,3.2078,4510.4,4510.3,0.8557]
[1755449606445,0.258,4510.8,4510.3,1.59477]
[1755449606646,3.2078,4510.9,4510.7,1.29885]
[1755449606846,3.2078,4510.9,4510.0,1.10806]
[1755449606847,0.8683,4510.8,4510.1,0.3689]
[1755449607048,3.2078,4510.4,4510.2,25.1898]
[1755449607247,3.2078,4510.4,4510.3,0.8557]
[1755449607752,0.258,4510.3,4509.3,25.20723]
[1755449607948,0.5143,4510.2,4510.0,0.44322]
[1755449608252,0.8683,4510.3,4509.6,0.44326]
[1755449608443,3.2078,4509.7,4509.6,0.44326]
[1755449608641,0.8683,4509.6,4509.0,0.2361]
[1755449609048,2.207,4512.2,4508.9,24.60932]
[1755449609049,0.8683,4509.0,4508.9,24.166]
[1755449609249,0.8683,4509.0,4508.9,24.194]
[1755449609447,0.8683,4509.0,4508.8,0.44333]
[1755449609649,3.2078,4509.1,4508.9,0.44332]
[1755449609851,3.2078,4510.1,4509.5,0.44327]
[1755449610053,3.2078,4509.6,4509.5,0.44327]
[1755449610445,0.8683,4510.0,4509.9,0.44323]
[1755449610747,0.8683,4510.0,4509.5,1.47708]
[1755449610748,0.258,4510.0,4509.8,0.44324]
[1755449610954,0.258,4510.0,4509.5,0.3689]
[1755449610955,0.258,4510.0,4509.6,0.44325]
[1755449611156,0.6103,4509.9,4509.6,1.29895]
[1755449611352,0.8683,4509.9,4509.7,0.44324]
[1755449611554,3.2078,4510.1,4509.4,24.185]
[1755449611555,3.2078,4510.1,4510.0,0.69392]
[1755449611853,3.2078,4510.6,4510.5,0.8557]
[1755449612052,3.2078,4510.6,4510.5,25.0167]
[1755449612647,3.2078,4511.4,4511.1,0.44311]
[1755449612845,0.8904,4511.2,4510.1,0.2507]
[1755449613051,0.8683,4510.7,4510.0,0.44322]
[1755449613251,0.8683,4510.2,4509.5,0.44327]
[1755449613455,3.4641,4509.6,4509.4,0.44328]
[1755449613650,3.2078,4509.6,4509.5,0.44327]
[1755449613845,3.2078,4509.6,4509.5,1.29897]
[1755449614055,3.2078,4510.3,4509.5,3.4439]
[1755449614358,3.2078,4510.3,4510.2,0.8557]
[1755449614553,3.2078,4510.3,4510.2,24.9967]
[1755449614756,3.2078,4511.1,4510.2,24.9967]
[1755449614959,3.4658,4511.1,4510.8,0.44314]
[1755449615258,3.7221,4511.1,4510.8,0.44314]
[1755449615457,0.8683,4511.0,4510.7,0.44315]
[1755449615646,0.8683,4511.0,4510.2,24.9967]
[1755449615647,3.2078,4511.1,4511.0,0.8557]
[1755449616049,3.2078,4511.1,4510.2,24.141]